bitfinex-derivatives/quotes_ETHF0:USTF0_20260131
["timestamp","ask_amount","ask_price","bid_price","bid_amount"]
[1769896698505,0.38121101,2420.2,2418.9,3.7462561]
[1769896698909,0.20691,2419.8,2418.9,3.7462561]
[1769896699805,3.93959865,2419.9,2418.9,3.7462561]
[1769896700011,3.93959865,2419.9,2418.6,3.7462561]
[1769896700206,2.80821101,2420.2,2418.0,4.76504495]
[1769896700207,3.93959865,2419.1,2418.0,3.7462561]
[1769896700408,6.36659865,2419.0,2418.0,3.7462561]
[1769896700711,0.20702,2418.5,2418.0,3.7462561]
[1769896701314,0.21214488,2418.5,2418.0,3.7496377]
[1769896701511,0.00512488,2418.5,2418.0,3.7496377]
[1769896702710,0.20696,2419.1,2418.0,3.7496377]
[1769896703112,0.20697,2419.0,2418.0,3.7496377]
[1769896703311,0.20698,2418.9,2418.0,3.7496377]
[1769896703714,0.21169768,2418.9,2418.0,3.7496377]
[1769896704508,6.36659865,2418.8,2418.0,0.0033816]
[1769896704711,0.20701,2418.6,2418.0,3.7496377]
[1769896704912,3.94431633,2418.9,2418.0,0.0033816]
[1769896705208,3.94431633,2418.9,2417.7,3.7462561]
[1769896705209,4.14662865,2418.4,2417.7,3.7462561]
[1769896706015,4.14662865,2418.4,2417.7,3.75047293]
[1769896706908,3.93959865,2418.2,2417.7,0.00421683]
[1769896707105,0.20708,2417.8,2417.1,3.7462561]
[1769896707714,0.20703,2418.3,2417.1,3.7462561]
[1769896707913,0.20703,2418.3,2417.1,6.12330626]
[1769896708116,0.20703,2418.3,2417.1,3.75116258]
[1769896708314,0.20703,2418.3,2417.1,6.12821274]
[1769896708517,3.93959865,2418.4,2417.2,3.7462561]
[1769896710012,2.427,2418.3,2417.3,3.7462561]
[1769896710210,0.20705,2418.1,2417.3,3.7462561]
[1769896711315,0.20706,2418.0,2417.3,3.7462561]
[1769896712317,0.20706,2418.0,2417.4,3.7462561]
[1769896712513,6.36659865,2418.6,2417.5,3.7462561]
[1769896712717,0.00471768,2418.9,2417.5,6.12330626]
[1769896712917,0.00471768,2418.9,2417.9,3.7462561]
[1769896713507,0.20703,2418.4,2417.9,3.7462561]
[1769896713714,0.00471768,2418.9,2417.9,3.7462561]
[1769896715219,0.20703,2418.4,2417.9,3.7462561]
[1769896716319,0.21169768,2418.9,2417.9,3.7462561]
[1769896716522,0.21169768,2418.9,2418.0,3.7462561]
[1769896716819,3.94431633,2418.9,2418.0,3.7462561]
[1769896717016,2.427,2418.8,2418.0,3.7462561]
[1769896717718,3.94431633,2418.9,2418.0,3.7462561]
[1769896717916,2.427,2418.8,2418.0,3.7462561]
[1769896718314,0.20702,2418.5,2418.0,3.7462561]
[1769896720223,3.84338192,2418.4,2417.6,3.59739509]
[1769896720422,3.84338192,2418.5,2417.1,3.97614949]
[1769896720611,0.20705,2418.1,2417.5,3.97124301]
[1769896720815,2.427,2418.5,2417.5,3.97124301]
[1769896720816,3.84338192,2418.8,2417.5,3.97124301]
[1769896721015,2.427,2418.7,2417.7,3.97124301]
[1769896721422,0.20701,2418.5,2417.7,3.97124301]
[1769896721615,0.20702,2418.4,2417.7,3.97124301]
[1769896721817,0.20702,2418.4,2417.8,13.31139366]
[1769896722111,0.20702,2418.4,2417.8,3.83345068]
[1769896722318,0.20702,2418.4,2417.9,7.96865068]
[1769896722514,3.75977785,2418.9,2417.9,3.83345068]
[1769896722715,0.21169768,2418.9,2418.0,3.83345068]
[1769896722921,2.427,2419.2,2418.3,3.83345068]
[1769896723321,0.20694,2419.4,2418.5,3.83345068]
[1769896723519,0.20694,2419.4,2417.5,4.0441]
[1769896723520,3.311,2419.8,2418.7,3.83345068]
[1769896723816,2.63389,2420.0,2418.9,3.83345068]
[1769896724027,0.21148425,2420.0,2418.9,3.83663785]
[1769896724216,0.21148425,2420.0,2419.3,3.83345068]
[1769896724614,0.21148425,2420.0,2419.5,3.83345068]
[1769896725017,0.21148425,2420.0,2419.5,13.31139366]
[1769896725215,0.21148425,2420.0,2419.6,3.83345068]
[1769896726219,0.20689,2419.9,2419.0,3.83345068]
[1769896726416,0.20689,2419.9,2419.3,3.83345068]
[1769896726617,0.20689,2419.9,2419.4,3.83345068]
[1769896727327,0.20689,2419.9,2419.4,17.44659366]
[1769896727524,2.43159425,2420.0,2419.1,3.83345068]
[1769896727723,0.20691,2419.7,2419.0,9.47794298]
[1769896728228,0.20691,2419.7,2419.0,17.44659366]
[1769896729623,3.75506017,2419.9,2419.0,3.83345068]
[1769896729835,3.75506017,2419.7,2418.9,0.00318717]
[1769896730029,0.00459425,2420.0,2419.0,7.96865068]
[1769896730334,0.20685,2420.5,2419.5,3.83345068]
[1769896730532,0.07192958,2420.7,2419.7,3.83345068]
[1769896730732,0.36662142,2421.0,2420.0,3.83345068]
[1769896731034,0.2068,2421.1,2420.0,3.83345068]
[1769896731035,2.49891412,2421.2,2420.0,3.83345068]
[1769896731334,2.50272763,2421.2,2420.2,3.83345068]
[1769896731835,2.50272763,2421.2,2420.4,3.83345068]
[1769896732227,3.75506017,2422.2,2420.6,3.83345068]
[1769896732432,3.75506017,2421.5,2419.7,3.83345068]
[1769896732630,2.63277,2421.4,2419.7,3.83345068]
[1769896732829,0.20677,2421.3,2419.9,3.83345068]
[1769896733032,0.20677,2421.3,2420.0,3.83345068]
[1769896733225,0.20678,2421.2,2420.2,3.83345068]
[1769896733432,0.20678,2421.2,2420.3,3.83345068]
[1769896733633,0.00427376,2421.3,2420.4,3.83345068]
[1769896733833,0.20682,2420.8,2420.3,9.47794298]
[1769896734335,0.20682,2420.8,2420.3,13.31139366]
[1769896734536,0.20682,2420.8,2420.3,17.44659366]
[1769896734736,0.00427376,2421.3,2420.6,7.96865068]
[1769896734933,0.00427376,2421.3,2420.4,3.83345068]
[1769896734934,0.20681,2420.9,2420.4,3.83345068]
[1769896735532,0.20681,2420.9,2420.0,3.83851858]
[1769896735834,0.20681,2420.9,2420.4,3.83345068]
[1769896736027,0.20681,2420.9,2420.5,3.83345068]
[1769896736226,0.20681,2420.9,2420.4,7.96865068]
[1769896736430,0.20681,2420.9,2420.5,3.83345068]
[1769896736633,0.20681,2420.9,2420.4,4.1352]
[1769896736833,0.20681,2420.9,2420.1,3.83345068]
[1769896737038,0.20681,2420.9,2420.2,13.61314298]
[1769896738732,0.20681,2420.9,2420.2,17.44659366]
[1769896738942,0.20682,2420.8,2420.2,17.44659366]
[1769896739143,0.20682,2420.8,2420.2,13.31139366]
[1769896739439,0.20682,2420.8,2420.3,4.1352]
[1769896739640,0.20682,2420.8,2420.3,7.96865068]
[1769896739843,0.20682,2420.8,2420.4,3.83345068]
[1769896740137,0.07191086,2421.2,2420.7,3.83345068]
[1769896741338,0.07191086,2421.2,2420.1,3.83345068]
[1769896741540,0.20686,2420.3,2420.0,0.0050679]
[1769896741837,0.20686,2420.3,2418.5,0.20701]
[1769896741838,0.20692,2419.6,2419.0,3.83345068]
[1769896742038,0.20693,2419.5,2419.2,3.83345068]
[1769896742339,0.20694,2419.4,2418.8,3.83345068]
[1769896742736,0.20695,2419.3,2418.8,0.00336035]
[1769896742939,0.20696,2419.2,2418.5,3.83345068]
[1769896743136,0.20696,2419.2,2418.6,8.08794298]
[1769896743336,0.20697,2419.1,2418.2,3.83345068]
[1769896743537,2.63197,2419.1,2418.2,3.83345068]
[1769896743736,2.63197,2419.1,2418.3,16.05659366]
[1769896743737,0.20698,2418.9,2418.3,16.05659366]
[1769896743939,0.20698,2418.9,2418.3,3.83816405]
[1769896744134,3.75506017,2419.0,2418.3,3.37e-06]
[1769896744439,3.75506017,2419.0,2417.7,3.83345068]
[1769896744635,3.75506017,2419.0,2417.7,11.92139366]
[1769896744838,3.75506017,2419.0,2417.7,8.08794298]
[1769896745037,3.75506017,2418.2,2416.9,3.83345068]
[1769896745245,0.20707,2417.9,2416.9,8.09198176]
[1769896745645,0.20707,2417.9,2417.0,3.83345068]
[1769896745841,0.20707,2417.9,2417.2,4.1352]
[1769896746038,0.2071,2417.5,2416.9,0.00403878]
[1769896746242,6.18106017,2417.4,2416.9,0.00403878]
[1769896746440,3.75506017,2417.4,2416.9,4.13923878]
[1769896746742,6.18106017,2417.3,2416.9,0.00403878]
[1769896746945,6.18106017,2417.3,2415.7,3.83345068]
[1769896746946,0.20718,2416.7,2415.7,3.83345068]
[1769896747246,0.00484226,2417.5,2415.4,8.08794298]
[1769896747247,0.20721,2416.2,2415.4,8.08794298]
[1769896747449,2.426,2416.3,2415.5,3.73009967]
[1769896747941,2.426,2416.3,2415.8,4.1352]
[1769896748141,2.426,2416.3,2415.5,0.00521816]
[1769896748142,3.9039333,2416.1,2415.5,0.00521816]
[1769896748643,3.6967133,2415.8,2414.2,3.73009967]
[1769896748943,0.35924863,2416.1,2414.5,3.73009967]
[1769896748944,0.20728,2415.4,2414.5,3.73009967]
[1769896749143,3.9040133,2415.2,2414.2,3.73009967]
[1769896749347,3.6967133,2415.0,2413.9,3.73009967]
[1769896749547,3.6967133,2414.6,2413.9,0.0049215]
[1769896749849,3.6967133,2414.4,2413.9,0.0049215]
[1769896750051,3.9040833,2414.4,2413.1,3.73009967]
[1769896750246,3.9040833,2414.4,2413.2,12.22314298]
[1769896750646,0.20737,2414.4,2413.4,7.86529967]
[1769896750842,2.427,2414.3,2413.6,7.86529967]
[1769896751046,2.427,2414.3,2413.6,7.86998583]
[1769896751350,3.6967133,2414.1,2413.6,0.00468616]
[1769896751652,3.6967133,2414.1,2413.0,3.73009967]
[1769896751653,2.427,2414.1,2413.0,3.73009967]
[1769896751850,2.427,2414.1,2413.3,4.1352]
[1769896752154,3.9040933,2414.3,2413.2,3.73009967]
[1769896752444,3.90888489,2415.0,2413.9,3.73009967]
[1769896752847,0.21217159,2415.0,2414.3,7.86529967]
[1769896753047,2.43285159,2415.0,2414.3,3.73009967]
[1769896753250,3.51924,2415.9,2415.0,3.73009967]
[1769896753450,3.6967133,2416.2,2415.0,3.73009967]
[1769896753753,3.6967133,2416.2,2413.9,2.428]
[1769896753754,2.428,2416.0,2415.2,7.86529967]
[1769896753954,2.428,2416.0,2415.4,4.1352]
[1769896754155,2.428,2415.9,2415.4,4.1352]
[1769896754354,2.428,2415.9,2415.4,8.09235033]
[1769896754649,2.4329091,2416.0,2415.4,8.08794298]
[1769896754857,2.4329091,2416.0,2414.0,3.73009967]
[1769896755050,0.0039091,2416.0,2414.0,3.73009967]
[1769896755645,0.20714,2417.0,2414.2,3.73009967]
[1769896755852,0.85723664,2417.5,2414.9,3.73009967]
[1769896756045,0.36421542,2417.5,2415.1,3.73009967]
[1769896756252,0.20708,2417.8,2415.5,3.73009967]
[1769896756755,0.00472926,2417.8,2415.9,3.93733967]
[1769896756956,0.37366171,2418.0,2416.1,3.73009967]
[1769896757154,0.20702,2418.5,2416.1,3.73009967]
[1769896757358,2.429,2419.0,2416.6,0.20718]
[1769896757557,2.429,2419.0,2416.7,3.73009967]
[1769896758059,0.20699,2418.8,2416.9,3.73009967]
[1769896758453,0.207,2418.7,2416.9,3.73009967]
[1769896759149,3.9037133,2418.7,2416.9,3.73009967]
[1769896760159,0.207,2418.7,2416.9,3.73009967]
[1769896761957,3.9037133,2418.7,2416.9,3.73009967]
[1769896763062,0.207,2418.7,2416.9,3.73009967]
[1769896764159,0.207,2418.7,2417.0,3.312]
[1769896764462,0.207,2418.7,2417.1,3.73009967]
[1769896765165,0.00531391,2419.0,2417.1,3.73009967]
[1769896766162,0.00531391,2419.0,2417.3,3.73009967]
[1769896766359,0.00531391,2419.0,2417.3,3.73393738]
[1769896768259,0.20699,2418.8,2417.3,3.73393738]
[1769896769169,3.6967133,2418.8,2417.3,3.73393738]
[1769896770060,3.6967133,2418.6,2417.3,0.00383771]
[1769896770562,3.9037833,2417.9,2416.7,3.73009967]
[1769896770771,0.20707,2417.8,2416.7,3.73009967]
[1769896771265,3.9037833,2417.8,2416.7,3.73009967]
[1769896771467,3.9037833,2417.8,2416.7,3.73381214]
[1769896771866,0.20702,2418.4,2416.7,3.73381214]
[1769896773268,0.20702,2418.4,2416.8,3.73009967]
[1769896774567,0.20702,2418.4,2417.0,3.73009967]
[1769896775168,0.00531391,2419.0,2417.0,3.73009967]
[1769896775373,0.21228391,2419.0,2417.2,3.73009967]
[1769896775570,0.21228391,2419.0,2417.2,3.93721967]
[1769896775968,0.21228391,2419.0,2417.4,3.93720967]
[1769896776164,0.21228391,2419.0,2417.6,3.73009967]
[1769896776768,3.70202721,2419.0,2417.6,3.73009967]
[1769896776970,0.207,2418.7,2417.6,3.73009967]
[1769896777470,0.00531391,2419.0,2417.6,3.73009967]
[1769896777675,3.74481503,2419.0,2417.6,3.73009967]
[1769896779277,0.207,2418.7,2417.6,3.73009967]
[1769896779665,3.94650112,2418.7,2417.6,3.73009967]
[1769896780370,3.94655112,2418.1,2417.2,3.95492667]
[1769896780576,0.20706,2418.0,2416.9,7.26592667]
[1769896780771,0.20706,2418.0,2417.0,3.95492667]
[1769896782174,2.63401,2418.6,2417.3,3.64623765]
[1769896782375,2.63401,2418.6,2417.4,3.64623765]
[1769896782579,0.20701,2418.6,2417.4,3.64623765]
[1769896782879,0.00531391,2419.0,2417.7,3.64623765]
[1769896783279,0.00531391,2419.0,2417.9,6.02019529]
[1769896783481,0.00531391,2419.0,2418.1,3.64623765]
[1769896783972,0.00531391,2419.0,2418.1,6.02019529]
[1769896784280,0.00531391,2419.0,2418.2,9.97538674]
[1769896784483,0.00531391,2419.0,2418.3,3.95519145]
[1769896785178,0.00531391,2419.0,2418.4,6.32914909]
[1769896785378,3.9174504,2418.9,2418.4,2.37915006]
[1769896785578,3.7104704,2418.9,2418.3,2.37395764]
[1769896785875,3.9174504,2418.9,2418.3,2.37395764]
[1769896786270,3.9174504,2418.9,2418.4,6.40540344]
[1769896786474,3.9174504,2418.9,2418.4,0.00410177]
[1769896788483,0.20694,2419.4,2418.6,3.64623765]
[1769896788676,0.20695,2419.3,2418.6,3.64623765]
[1769896788877,3.7104704,2419.8,2418.9,3.64623765]
[1769896789079,2.427,2419.7,2418.9,3.64623765]
[1769896789479,2.42992553,2419.7,2418.9,3.64623765]
[1769896790075,0.00292553,2419.7,2419.0,3.90067325]
[1769896790276,0.6130675,2419.8,2419.1,7.54484944]
[1769896790474,0.6130675,2419.8,2419.2,6.40373539]
[1769896790680,4.1166279,2419.8,2419.1,2.37395764]
[1769896790880,4.1166279,2419.8,2419.2,4.03030611]
[1769896791088,4.1166279,2419.8,2419.1,2.37395764]
[1769896791284,4.12004924,2419.8,2419.1,2.37395764]
[1769896791580,4.12004924,2419.8,2419.0,2.37395764]
[1769896793183,3.7104704,2419.2,2418.6,3.56307157]
[1769896793382,0.20697,2419.1,2418.5,3.56307157]
[1769896793589,0.20697,2419.1,2418.6,4.01538877]
[1769896793779,6.1374704,2419.4,2418.5,4.01538877]
[1769896794685,6.1374704,2419.4,2418.4,3.65033942]
[1769896795384,0.20698,2418.9,2418.5,3.64623765]
[1769896796079,2.83657884,2419.8,2418.8,3.64623765]
[1769896796280,0.20695,2419.3,2419.0,3.64623765]
[1769896797579,0.20695,2419.3,2418.9,3.91329821]
[1769896797580,0.20695,2419.3,2419.1,7.55953586]
[1769896797780,0.20695,2419.3,2419.1,3.64623765]
[1769896797976,3.31,2420.1,2419.0,3.56307157]
[1769896797977,0.20686,2420.3,2419.3,3.64623765]
[1769896798181,0.61416985,2420.3,2419.5,3.64623765]
[1769896799088,0.61911861,2420.3,2419.5,3.64623765]
[1769896799986,0.61911861,2420.3,2419.6,3.64623765]
[1769896801090,0.00494876,2420.3,2419.8,3.64623765]
[1769896801284,0.20682,2420.8,2420.0,3.64623765]
[1769896801796,0.27869086,2421.2,2420.2,3.64623765]
[1769896802094,4.19260023,2421.2,2420.1,3.6009687]
[1769896802291,3.7104704,2420.8,2419.8,4.13474262]
[1769896802488,0.20686,2420.3,2419.6,3.64623765]
[1769896802791,0.20686,2420.3,2419.4,3.6009687]
[1769896802792,0.20686,2420.3,2419.7,3.64623765]
[1769896802992,0.20687,2420.2,2419.4,7.78221705]
[1769896803393,0.20687,2420.2,2419.4,7.78566285]
[1769896803593,0.20687,2420.2,2419.4,3.64968345]
[1769896803894,0.20687,2420.2,2419.5,3.64623765]
[1769896804089,6.1364704,2420.7,2419.4,0.0034458]
[1769896804090,3.7104704,2420.4,2419.4,0.0034458]
[1769896804685,0.2069,2419.9,2419.4,3.64968345]
[1769896804990,5.73538738,2421.0,2419.6,7.24720635]
[1769896804991,0.20685,2420.4,2419.6,7.24720635]
[1769896805194,0.20681,2420.9,2419.8,3.64623765]
[1769896805390,2.63281,2420.9,2419.9,3.64623765]
[1769896805585,2.63281,2420.9,2420.0,3.64623765]
[1769896805791,0.20682,2420.8,2420.0,3.64623765]
[1769896805991,0.20683,2420.7,2420.0,3.64623765]
[1769896806594,0.20683,2420.7,2419.9,7.72935187]
[1769896806595,0.20683,2420.7,2420.1,3.64623765]
[1769896807391,0.20683,2420.7,2419.5,5.86214459]
[1769896807392,3.6989836,2421.1,2419.4,3.67895971]
[1769896807591,0.20688,2420.2,2419.4,3.67895971]
[1769896807988,0.20688,2420.2,2419.4,11.27054016]
[1769896808195,0.20688,2420.2,2419.5,3.67551391]
[1769896808889,0.20683,2420.7,2419.7,3.67551391]
[1769896809093,3.6989836,2420.7,2419.7,3.67551391]
[1769896809292,0.20687,2420.2,2419.7,3.67551391]
[1769896809893,2.426,2420.8,2419.7,3.67551391]
[1769896810087,0.20683,2420.7,2419.9,3.67551391]
[1769896810890,0.20683,2420.7,2420.0,3.67551391]
[1769896811999,0.20683,2420.7,2420.1,3.67551391]
[1769896812594,0.20679,2421.1,2420.2,3.67551391]
[1769896812793,0.20679,2421.1,2420.3,3.67551391]
[1769896813398,4.11324781,2421.2,2420.1,3.99820798]
[1769896813599,0.20685,2420.5,2420.0,3.67551391]
[1769896813998,0.41426421,2421.2,2420.1,3.67551391]
[1769896813999,0.2068,2421.1,2420.1,3.67551391]
[1769896814299,0.2068,2421.1,2420.1,7.26888638]
[1769896814499,0.2068,2421.1,2420.2,3.67551391]
[1769896814695,0.2068,2421.1,2420.4,3.67551391]
[1769896814901,0.41426421,2421.2,2420.5,3.67551391]
[1769896815894,0.00404524,2421.2,2420.5,3.67551391]
[1769896816102,0.20676,2421.5,2420.5,3.67551391]
[1769896816299,3.77087737,2421.9,2420.5,3.67551391]
[1769896816496,0.2068,2421.1,2420.5,3.67551391]
[1769896816801,0.2068,2421.0,2420.5,3.67551391]
[1769896817102,0.00537261,2421.0,2420.5,3.67551391]
[1769896817393,0.07189377,2421.9,2420.5,3.67551391]
[1769896817601,0.07189377,2421.9,2420.6,7.26888638]
[1769896817799,0.07189377,2421.9,2420.7,3.67551391]
[1769896818004,0.20677,2421.4,2420.7,3.67551391]
[1769896818295,0.20672,2421.9,2420.8,3.67551391]
[1769896818606,0.20669,2422.3,2421.3,3.67551391]
[1769896819100,0.20673,2421.8,2421.3,3.67551391]
[1769896819306,0.20677,2421.8,2420.9,3.67551391]
[1769896819498,0.41354,2421.4,2420.9,3.67551391]
[1769896819702,0.20677,2421.4,2420.9,3.67551391]
[1769896820197,0.00517888,2421.8,2420.9,3.67551391]
[1769896820497,0.21190888,2421.8,2420.9,3.67947904]
[1769896821298,3.70416248,2421.8,2420.9,3.67947904]
[1769896821497,0.20677,2421.4,2420.9,3.67947904]
[1769896821901,0.20677,2421.2,2420.9,3.67947904]
[1769896822197,0.41357,2421.1,2420.6,3.67551391]
[1769896822402,0.41357,2421.1,2420.1,3.58677719]
[1769896822403,0.2068,2421.0,2420.2,3.67551391]
[1769896823000,0.00517888,2421.8,2420.7,3.67551391]
[1769896823204,0.20677,2421.7,2420.7,3.67551391]
[1769896823400,0.00517888,2421.8,2420.7,3.67551391]
[1769896823607,0.00517888,2421.8,2420.8,3.67551391]
[1769896824203,0.20675,2421.6,2420.8,3.67551391]
[1769896824796,0.20675,2421.6,2420.7,3.58677719]
[1769896824797,0.20677,2421.4,2420.7,3.67551391]
[1769896825003,0.20677,2421.5,2420.7,3.67551391]
[1769896825404,0.20677,2421.4,2420.7,3.67551391]
[1769896825604,0.20677,2421.5,2420.7,3.67551391]
[1769896826000,0.20677,2421.4,2420.7,3.67551391]
[1769896826201,0.20677,2421.5,2420.7,3.67551391]
[1769896826604,0.20677,2421.4,2420.7,3.67551391]
[1769896826809,0.20677,2421.5,2420.7,3.67551391]
[1769896827309,0.20677,2421.4,2420.8,3.67551391]
[1769896827511,0.20677,2421.5,2420.8,3.67551391]
[1769896827712,0.20677,2421.4,2420.8,3.67551391]
[1769896828207,0.20677,2421.3,2420.8,3.67551391]
[1769896828401,3.9057536,2421.4,2420.7,7.45689904]
[1769896828601,0.20677,2420.8,2420.3,7.45689904]
[1769896828801,0.20679,2421.2,2420.4,11.13241295]
[1769896829007,0.20679,2421.2,2420.6,3.67551391]
[1769896829311,0.20679,2421.2,2420.6,7.54563576]
[1769896829511,0.20679,2421.2,2420.7,3.67551391]
[1769896830113,0.20679,2421.2,2420.5,7.45689904]
[1769896830114,0.20677,2420.9,2420.5,7.45689904]
[1769896830410,0.20677,2420.9,2420.3,7.54563576]
[1769896830711,3.6989836,2420.7,2420.2,0.00482765]
[1769896830900,3.6989836,2420.7,2419.8,7.45689904]
[1769896831108,0.20677,2420.6,2419.8,3.67551391]
[1769896831300,0.20677,2420.5,2419.8,7.50399679]
[1769896831709,0.20677,2420.4,2419.8,3.67551391]
[1769896831907,0.20677,2420.5,2419.8,3.67964963]
[1769896832304,0.20677,2420.4,2419.8,3.67964963]
[1769896832814,0.20677,2420.1,2419.6,7.2622911]
[1769896833014,0.20677,2420.2,2419.6,11.09077398]
[1769896833208,0.20677,2420.2,2419.7,7.50399679]
[1769896833409,0.20677,2420.1,2419.6,7.50399679]
[1769896833610,0.41363,2420.3,2419.6,3.67551391]
[1769896833909,0.20677,2420.1,2419.6,3.67859457]
[1769896834110,0.41365,2420.1,2419.6,0.00308066]
[1769896834305,0.20677,2419.7,2419.3,3.82848288]
[1769896834506,3.6989836,2420.2,2419.2,3.58677719]
[1769896834507,0.41367,2419.8,2419.2,3.67551391]
[1769896834708,0.00454335,2420.3,2419.4,3.67551391]
[1769896835014,3.6989836,2420.2,2419.5,3.82848288]
[1769896835210,0.41367,2419.9,2419.6,3.67551391]
[1769896835412,0.00454335,2420.3,2419.6,3.67551391]
[1769896835614,0.2069,2419.9,2419.5,0.00460455]
[1769896835818,0.2069,2419.8,2419.5,0.00460455]
[1769896836015,0.20691,2419.7,2419.1,3.58677719]
[1769896836317,0.20691,2419.7,2419.0,3.67551391]
[1769896837114,0.20693,2419.5,2419.0,3.67983897]
[1769896837707,0.61634577,2419.5,2419.0,3.67983897]
[1769896838217,0.61634577,2419.5,2419.0,0.00432506]
[1769896838416,0.61634577,2419.5,2419.0,3.76357809]
[1769896838619,0.20696,2419.2,2419.0,0.00432506]
[1769896838817,0.20696,2419.2,2418.4,7.34603022]
[1769896839008,0.20696,2419.2,2418.5,3.75925303]
[1769896839716,0.20696,2419.2,2418.5,3.76330225]
[1769896839917,3.80723218,2420.1,2418.5,3.76330225]
[1769896840112,3.80723218,2420.1,2418.6,3.75925303]
[1769896840113,6.23223218,2420.1,2418.6,3.75925303]
[1769896840309,0.20693,2419.5,2418.6,3.75925303]
[1769896840713,3.80723218,2419.7,2418.6,3.75925303]
[1769896841918,4.26088172,2419.7,2418.6,3.75925303]
[1769896842220,0.20696,2419.2,2418.6,3.75925303]
[1769896843720,4.26088172,2419.7,2418.6,3.75925303]
[1769896843721,0.20696,2419.1,2418.6,3.75925303]
[1769896844217,0.45364954,2419.7,2418.6,3.75925303]
[1769896844421,2.426,2419.8,2418.6,3.75925303]
[1769896844611,0.20693,2419.5,2418.6,3.75925303]
[1769896845012,0.20694,2419.4,2418.6,3.75925303]
[1769896845416,0.20696,2419.1,2418.6,3.75925303]
[1769896845615,0.20699,2418.8,2418.6,3.75925303]
[1769896845819,3.53492068,2419.3,2418.5,0.00404922]
[1769896846021,0.451163,2419.7,2417.5,5.97796198]
[1769896846022,0.20702,2418.4,2417.7,3.34650531]
[1769896847019,0.21004056,2418.4,2417.7,3.34963624]
[1769896848022,0.20703,2418.3,2417.7,3.34963624]
[1769896848422,0.20704,2418.2,2417.7,3.34963624]
[1769896848626,0.20705,2418.1,2417.7,3.34963624]
[1769896848928,0.20706,2418.0,2417.7,3.14672546]
[1769896849328,0.20706,2418.0,2417.7,0.00313093]
[1769896849522,0.20706,2418.0,2417.2,3.309]
[1769896850427,0.20708,2417.7,2417.2,0.00422058]
[1769896850923,0.20709,2417.6,2417.2,3.35072589]
[1769896851226,0.20711,2417.4,2416.5,7.54977719]
[1769896851424,3.53492068,2418.0,2416.5,7.54977719]
[1769896851624,0.20709,2417.7,2416.5,3.963]
[1769896851819,0.20709,2417.6,2416.5,3.963]
[1769896852322,0.20709,2417.6,2416.5,7.55287904]
[1769896852521,0.20711,2417.4,2416.5,7.55287904]
[1769896852727,0.20711,2417.4,2416.5,3.96610185]
[1769896853026,3.53794124,2418.4,2416.6,3.34650531]
[1769896853223,0.20707,2417.9,2416.9,3.34650531]
[1769896854527,0.20707,2417.9,2417.1,3.34650531]
[1769896855421,3.53492068,2418.3,2417.1,3.34650531]
[1769896856030,3.53492068,2418.1,2417.1,3.34650531]
[1769896856331,0.20713,2417.2,2416.8,3.34650531]
[1769896857132,0.20713,2417.2,2416.5,3.34960716]
[1769896858032,3.97377851,2417.2,2416.5,0.00310185]
[1769896858235,3.74207068,2417.0,2416.5,0.00310185]
[1769896858425,3.53492068,2417.0,2416.5,0.00310185]
[1769896858628,0.20717,2416.7,2416.5,0.00310185]
[1769896858831,0.21072102,2416.7,2416.5,0.00310185]
[1769896859031,0.00355102,2416.7,2416.5,0.00310185]
[1769896859530,3.74201068,2417.6,2416.5,3.34960716]
[1769896859736,0.20709,2417.6,2416.5,3.34960716]
[1769896860230,0.20709,2417.6,2416.6,5.75157794]
[1769896860434,0.2105385,2417.6,2416.7,3.34650531]
[1769896860630,0.2105385,2417.6,2416.7,5.75157794]
[1769896860826,0.2105385,2417.6,2416.7,3.34650531]
[1769896861031,3.74545918,2417.6,2416.7,3.34650531]
[1769896861328,0.2105385,2417.6,2416.7,3.34650531]
[1769896861537,0.0034485,2417.6,2416.8,3.34650531]
[1769896861736,0.0034485,2417.6,2416.8,5.75157794]
[1769896861928,0.2105385,2417.6,2416.9,3.34650531]
[1769896862136,0.2071,2417.5,2416.9,3.34650531]
[1769896863537,0.0034485,2417.6,2416.7,2.40507263]
[1769896863538,3.53836918,2417.6,2416.7,2.40507263]
[1769896863839,3.53836918,2417.6,2416.6,2.40507263]
[1769896863840,3.74205068,2417.2,2416.6,2.40507263]
[1769896864038,0.20715,2417.0,2416.6,2.40507263]
[1769896864232,0.20717,2416.8,2416.5,0.00310185]
[1769896864534,3.74211068,2416.5,2416.2,2.40507263]
[1769896864729,3.74212068,2416.3,2415.7,2.40507263]
[1769896864930,3.74212068,2416.3,2415.6,3.58677719]
[1769896864931,0.20721,2416.2,2415.6,2.40507263]
[1769896865131,0.20721,2416.2,2415.5,2.40507263]
[1769896865336,0.20721,2416.2,2415.5,0.00517808]
[1769896865533,3.74214068,2416.1,2415.5,0.00517808]
[1769896865835,3.74218068,2415.7,2414.9,2.40507263]
[1769896866041,3.74218068,2415.7,2414.8,2.40507263]
[1769896866337,3.74218068,2415.6,2414.7,2.40507263]
[1769896866533,3.74220068,2415.4,2414.6,2.40507263]
[1769896866734,3.74221068,2415.3,2414.6,0.00327707]
[1769896867333,2.19141163,2415.1,2414.1,5.71607263]
[1769896867532,2.19141163,2415.1,2414.1,2.40507263]
[1769896867734,2.19141163,2415.1,2414.0,4.26742957]
[1769896867935,0.20731,2415.1,2414.3,1.86235694]
[1769896868438,2.19141163,2415.1,2414.3,0.00496967]
[1769896869640,0.20732,2414.9,2414.3,0.00496967]
[1769896869842,2.19142163,2414.9,2414.0,1.86235694]
[1769896870141,0.00453456,2415.4,2414.3,1.86235694]
[1769896870142,0.20729,2415.3,2414.3,1.86235694]
[1769896870741,0.20729,2415.3,2414.3,1.8667828]
[1769896874048,2.19139163,2415.3,2414.3,1.8667828]
[1769896874249,0.2073,2415.2,2414.3,1.8667828]
[1769896874544,0.00453456,2415.4,2414.3,0.00442586]
[1769896874545,2.19143163,2414.9,2414.3,0.00442586]
[1769896874743,0.00453456,2415.4,2414.0,1.86235694]
[1769896874744,2.19143163,2414.8,2414.0,1.86235694]
[1769896874945,0.20729,2415.3,2414.0,1.86235694]
[1769896875148,0.20729,2415.3,2414.2,1.86235694]
[1769896875744,0.20729,2415.3,2414.2,1.86749864]
[1769896877250,0.20729,2415.3,2414.3,1.86235694]
[1769896878650,2.19134163,2415.9,2414.7,1.81724426]
[1769896878851,0.20724,2415.9,2414.7,1.81724426]
[1769896879052,0.20724,2415.9,2414.9,1.81724426]
[1769896879346,0.20715,2416.9,2415.8,1.72737054]
[1769896879552,0.21183805,2416.9,2415.9,1.72737054]
[1769896879747,0.21183805,2416.9,2415.9,1.7302848]
[1769896879949,0.21183805,2416.9,2416.0,1.72737054]
[1769896880247,2.44464611,2417.7,2416.2,2.41301065]